Workbook

Sheet ТОВ Вінницька птахофабрика
A1: ПАТ "УКРТРАНСГАЗ" | G1: ПАСПОРТ ФІЗИКО-ХІМІЧНИХ ПОКАЗНИКІВ ПРИРОДНОГО ГАЗУ № | AE1: 65,1;93,1
A2: Філія "УМГ "Черкаситрансгаз" | G2: переданого Гайсинським ЛВУМГ та прийнятого ТОВ "Вінницька птахофабрика", філія "Внутрішньогосподарський комплекс по виробництву кормів" Вінницької області
A3: Гайсинський п/м Гайсинське ЛВУМГ | G3: по ГВС (ПВВГ, СВГ, ГРС): ГРС Ладижин МХП, ГРС Четвертинівка МХП | AB3: Маршрут № 812
A4: Вимірювальна хіміко-аналітична лабораторія
A5: Свідоцтво № ПУ-0077/14 чинно до 27.05.2018 р. | K5: газопроводу "СОЮЗ" | V5: за період з | X5: 2016-11-01 | Z5: по | AA5: =EOMONTH(X5,0) -> 2016-11-30
A7: Число місяця | B7: Компонентний склад, % мол. | N7: Фізико-хімічні показники газу обчислені на основі компонентного складу, 101,325 кПа | X7: Температура точки роси вологи (Р = 3.92 МПа), ºС | Y7: Температура точки роси вуглеводнів, ºС | Z7: Масова концентрація сірководню, мг/м3 | AA7: Масова концентрація меркаптанової сірки, мг/м3 | AB7: Маса механічних домішок, мг/м3 | AC7: Обсяг газу, тис. м3 (обрахованого на вузлах обліку газу)
N8: Густина абсолютна, кг/м3,при 20 ºС, | O8: Температура вимірювання/згоряння при | V8: 20/25ºС
B9: метан, С1 | C9: етан, С2 | D9: пропан, С3 | E9: ізо-бутан, і-С4 | F9: н-бутан, н-С4 | G9: нео-пентан, нео-С5 | H9: ізо-пентан, і-С5 | I9: н-пентан, н-С5 | J9: гексани та вищі, С6+ | K9: кисень, О2 | L9: азот, N2 | M9: діоксид вуглецю, CО2 | O9: Теплота згоряння нижча, ккал/м3 | P9: Теплота згоряння нижча, МДж/м3 | Q9: Теплота згоряння нижча, кВт⋅год/м3 | R9: Теплота згоряння вища, ккал/м3 | S9: Теплота згоряння вища, МДж/м3 | T9: Теплота згоряння вища, кВт⋅год/м3 | U9: Число Воббе вище, ккал/м3 | V9: Число Воббе вище, МДж/м3 | W9: Число Воббе вище, кВт⋅год/м3
A11: 1 | B11: 96.6007 | C11: 1.7671 | D11: 0.531 | E11: 0.0829 | F11: 0.0825 | G11: 0.0026 | H11: 0.0173 | I11: 0.012 | J11: 0.0042 | K11: 0.0077 | L11: 0.7469 | M11: 0.1451 | N11: 0.694 | O11: 8129 | P11: 34.03 | Q11: =P11/3.6 -> 9.452777778 | R11: 9012 | S11: 37.73 | T11: =S11/3.6 -> 10.48055556 | U11: 11872 | V11: 49.7 | W11: =V11/3.6 -> 13.80555556 | X11: -22 | AC11: 102.0072617 | AD11: =SUM(B11:M11)+$K$41+$N$41 -> 100
A12: 2 | B12: 96.6271 | C12: 1.7496 | D12: 0.5276 | E12: 0.0823 | F12: 0.0824 | G12: 0.0048 | H12: 0.0179 | I12: 0.012 | J12: 0.0045 | K12: 0.0077 | L12: 0.7379 | M12: 0.1462 | N12: 0.6939 | O12: 8128 | P12: 34.0316 | Q12: 9.453222222 | R12: 9011 | S12: 37.7293 | T12: 10.48036111 | U12: 11872 | V12: 49.7068 | W12: 13.80744444 | X12: -21.8 | AC12: 115.1625859 | AD12: 100
A13: 3 | B13: 96.601 | C13: 1.7439 | D13: 0.5538 | E13: 0.084 | F13: 0.0848 | G13: 0.002 | H13: 0.0175 | I13: 0.0122 | J13: 0.0043 | K13: 0.0077 | L13: 0.7413 | M13: 0.1475 | N13: 0.6942 | O13: 8131 | P13: 34.0418 | Q13: 9.456055556 | R13: 9014 | S13: 37.7401 | T13: 10.48336111 | U13: 11873 | V13: 49.7103 | W13: 13.80841667 | X13: -20.1 | AC13: 116.8835078 | AD13: 100 | AE13: =IF(AD13=100,"ОК"," ") -> ОК
A14: 4 | B14: 96.6274 | C14: 1.7598 | D14: 0.5278 | E14: 0.0805 | F14: 0.0798 | G14: 0.003 | H14: 0.0169 | I14: 0.0116 | J14: 0.0044 | K14: 0.0075 | L14: 0.7333 | M14: 0.148 | N14: 0.6938 | O14: 8128 | P14: 34.0286 | Q14: 9.452388889 | R14: 9011 | S14: 37.7401 | T14: 10.48336111 | U14: 11872 | V14: 49.706 | W14: 13.80722222 | X14: -20.3 | AC14: 91.58462109 | AD14: 100 | AE14: =IF(AD14=100,"ОК"," ") -> ОК
A15: 5 | O15: 8128 | P15: 34.0286 | Q15: =P15/3.6 -> 9.452388889 | R15: 9011 | S15: 37.7401 | T15: =S15/3.6 -> 10.48336111 | AC15: 102.0129414 | AD15: 0
A16: 6 | O16: 8128 | P16: 34.0286 | Q16: =P16/3.6 -> 9.452388889 | R16: 9011 | S16: 37.7401 | T16: =S16/3.6 -> 10.48336111 | AC16: 90.81833594 | AD16: 0
A17: 7 | B17: 96.6175 | C17: 1.7728 | D17: 0.5236 | E17: 0.0798 | F17: 0.0793 | G17: 0.0047 | H17: 0.0168 | I17: 0.0112 | J17: 0.0045 | K17: 0.0076 | L17: 0.7335 | M17: 0.1487 | N17: 0.6939 | O17: 8128 | P17: 34.0299 | Q17: 9.45275 | R17: 9011 | S17: 37.7401 | T17: 10.48336111 | U17: 11872 | V17: 49.7061 | W17: 13.80725 | X17: -18 | AC17: 128.1850664 | AD17: 100 | AE17: ОК
A18: 8 | B18: 96.532 | C18: 1.8326 | D18: 0.5499 | E18: 0.0829 | F18: 0.0828 | G18: 0.0036 | H18: 0.0176 | I18: 0.0119 | J18: 0.0036 | K18: 0.0077 | L18: 0.7222 | M18: 0.1532 | N18: 0.6946 | O18: 8137 | P18: 34.07 | Q18: 9.463888889 | R18: 9020 | S18: 37.7401 | T18: 10.48336111 | U18: 11878 | V18: 49.73 | W18: 13.81388889 | X18: -17.5 | AC18: 122.1991133 | AD18: 100 | AE18: ОК
A19: 9 | B19: 96.6375 | C19: 1.7763 | D19: 0.5219 | E19: 0.0783 | F19: 0.0778 | G19: 0.0018 | H19: 0.0158 | I19: 0.0109 | J19: 0.0035 | K19: 0.0081 | L19: 0.7249 | M19: 0.1433 | N19: 0.6936 | O19: 8127 | P19: 34.0265 | Q19: 9.451805556 | R19: 9010 | S19: 37.7401 | T19: 10.48336111 | U19: 11873 | V19: 49.7117 | W19: 13.80880556 | X19: -18 | AC19: 100.6603984 | AD19: 100.0001
A20: 10 | B20: 96.6093 | C20: 1.7937 | D20: 0.5267 | E20: 0.0815 | F20: 0.08 | G20: 0.0017 | H20: 0.0164 | I20: 0.0113 | J20: 0.003 | K20: 0.0078 | L20: 0.722 | M20: 0.1467 | N20: 0.6939 | O20: 8130 | P20: 34.0379 | Q20: 9.454972222 | R20: 9013 | S20: 37.7401 | T20: 10.48336111 | U20: 11875 | V20: 49.7177 | W20: 13.81047222 | X20: -17.3 | AC20: 118.4596367 | AD20: 100.0001
A21: 11 | B21: 96.5699 | C21: 1.8229 | D21: 0.5347 | E21: 0.0827 | F21: 0.0817 | G21: 0.0022 | H21: 0.0169 | I21: 0.0115 | J21: 0.0046 | K21: 0.0078 | L21: 0.7154 | M21: 0.1497 | N21: 0.6943 | O21: 8134 | P21: 34.0565 | Q21: 9.460138889 | R21: 9018 | S21: 37.7401 | T21: 10.48336111 | U21: 11878 | V21: 49.7299 | W21: 13.81386111 | X21: -21.6 | AC21: 134.6451016 | AD21: 100 | AE21: ОК
A22: 12 | O22: 8134 | P22: 34.0565 | Q22: =P22/3.6 -> 9.460138889 | R22: 9018 | S22: 37.7401 | T22: =S22/3.6 -> 10.48336111 | AC22: 106.3401875 | AD22: 0
A23: 13 | O23: 8134 | P23: 34.0565 | Q23: =P23/3.6 -> 9.460138889 | R23: 9018 | S23: 37.7401 | T23: =S23/3.6 -> 10.48336111 | AC23: 93.30776953 | AD23: 0
A24: 14 | B24: 96.5984 | C24: 1.7661 | D24: 0.516 | E24: 0.0808 | F24: 0.0807 | G24: 0.0022 | H24: 0.0167 | I24: 0.0112 | J24: 0.0043 | K24: 0.0079 | L24: 0.7548 | M24: 0.1609 | N24: 0.694 | O24: 8124 | P24: 34.01 | Q24: 9.447222222 | R24: 9006 | S24: 37.7075 | T24: 10.47430556 | U24: 11865 | V24: 49.6764 | W24: 13.799 | X24: -22.9 | AC24: 132.3136523 | AD24: 100 | AE24: ОК
A25: 15 | B25: 96.6232 | C25: 1.7663 | D25: 0.5204 | E25: 0.0815 | F25: 0.0814 | G25: 0.0018 | H25: 0.017 | I25: 0.0116 | J25: 0.0037 | K25: 0.0078 | L25: 0.7341 | M25: 0.1512 | N25: 0.6938 | O25: 8127 | P25: 34.0251 | Q25: 9.451416667 | R25: 9010 | S25: 37.7222 | T25: 10.47838889 | U25: 11871 | V25: 49.7011 | W25: 13.80586111 | X25: -22.3 | AC25: 127.3028555 | AD25: 100 | AE25: ОК
A26: 16 | B26: 96.5488 | C26: 1.8024 | D26: 0.5458 | E26: 0.0866 | F26: 0.0874 | G26: 0.0019 | H26: 0.0181 | I26: 0.0127 | J26: 0.0041 | K26: 0.0079 | L26: 0.7279 | M26: 0.1562 | N26: 0.6946 | O26: 8135 | P26: 34.0595 | Q26: 9.460972222 | R26: 9019 | S26: 37.7591 | T26: 10.48863889 | U26: 11876 | V26: 49.7211 | W26: 13.81141667 | X26: -22.3 | AC26: 104.8127539 | AD26: 99.9998
A27: 17 | B27: 96.5164 | C27: 1.8334 | D27: 0.5471 | E27: 0.086 | F27: 0.0851 | G27: 0.0018 | H27: 0.0175 | I27: 0.0122 | J27: 0.0044 | K27: 0.0078 | L27: 0.7248 | M27: 0.1634 | N27: 0.6948 | O27: 8136 | P27: 34.0638 | Q27: 9.462166667 | R27: 9020 | S27: 37.7637 | T27: 10.48991667 | U27: 11875 | V27: 49.7202 | W27: 13.81116667 | X27: -22.8 | AC27: 102.6408887 | AD27: 99.9999
A28: 18 | B28: 96.5466 | C28: 1.8232 | D28: 0.5517 | E28: 0.0852 | F28: 0.085 | G28: 0.0026 | H28: 0.0183 | I28: 0.0127 | J28: 0.0045 | K28: 0.0079 | L28: 0.7095 | M28: 0.1527 | N28: 0.6947 | O28: 8138 | P28: 34.074 | Q28: 9.465 | R28: 9022 | S28: 37.7749 | T28: 10.49302778 | U28: 11880 | V28: 49.7409 | W28: 13.81691667 | X28: -22.6 | AC28: 96.98106641 | AD28: 99.9999
A29: 19 | O29: 8138 | P29: 34.074 | Q29: 9.465 | R29: 9022 | S29: 37.7749 | T29: 10.49302778 | AC29: 87.55738867 | AD29: 0
A30: 20 | O30: 8138 | P30: 34.074 | Q30: 9.465 | R30: 9022 | S30: 37.7749 | T30: 10.49302778 | AC30: 73.08807422 | AD30: 0
A31: 21 | B31: 96.5812 | C31: 1.8006 | D31: 0.5392 | E31: 0.084 | F31: 0.0841 | G31: 0.0027 | H31: 0.0176 | I31: 0.0123 | J31: 0.0031 | K31: 0.0092 | L31: 0.7163 | M31: 0.1497 | N31: 0.6943 | O31: 8134 | P31: 34.0552 | Q31: 9.459777778 | R31: 9018 | S31: 37.7548 | T31: 10.48744444 | U31: 11877 | V31: 49.7279 | W31: 13.81330556 | X31: -22.3 | AC31: 126.8259023 | AD31: 100 | AE31: ОК
A32: 22 | B32: 96.6002 | C32: 1.8025 | D32: 0.5531 | E32: 0.0856 | F32: 0.0861 | G32: 0.0018 | H32: 0.0172 | I32: 0.0122 | J32: 0.0046 | K32: 0.0079 | L32: 0.6865 | M32: 0.1423 | N32: 0.6943 | O32: 8140 | P32: 34.0791 | Q32: 9.466416667 | R32: 9024 | S32: 37.7809 | T32: 10.49469444 | U32: 11885 | V32: 49.762 | W32: 13.82277778 | X32: -22 | AC32: 93.67645508 | AD32: 100 | AE32: ОК
A33: 23 | B33: 96.5969 | C33: 1.8139 | D33: 0.5559 | E33: 0.0869 | F33: 0.087 | G33: 0.0018 | H33: 0.0178 | I33: 0.0124 | J33: 0.0034 | K33: 0.0082 | L33: 0.6756 | M33: 0.14 | N33: 0.6943 | O33: 8142 | P33: 34.0889 | Q33: 9.469138889 | R33: 9026 | S33: 37.7915 | T33: 10.49763889 | U33: 11888 | V33: 49.7745 | W33: 13.82625 | X33: -21.8 | AC33: 124.7327734 | AD33: 99.9998 | AE33: =IF(AD33=100,"ОК"," ") -> 
A34: 24 | B34: 96.6677 | C34: 1.7735 | D34: 0.541 | E34: 0.0845 | F34: 0.0839 | G34: 0.0024 | H34: 0.0165 | I34: 0.0116 | J34: 0.0039 | K34: 0.0077 | L34: 0.6688 | M34: 0.1384 | N34: 0.6937 | O34: 8137 | P34: 34.0683 | Q34: 9.463416667 | R34: 9021 | S34: 37.7695 | T34: 10.49152778 | U34: 11887 | V34: 49.7666 | W34: 13.82405556 | X34: -22.5 | AC34: 118.0699766 | AD34: 99.9999
A35: 25 | B35: 96.6935 | C35: 1.7432 | D35: 0.5229 | E35: 0.083 | F35: 0.0829 | G35: 0.0013 | H35: 0.0169 | I35: 0.0119 | J35: 0.0048 | K35: 0.0078 | L35: 0.691 | M35: 0.1408 | N35: 0.6935 | O35: 8131 | P35: 34.0416 | Q35: 9.456 | R35: 9014 | S35: 37.7406 | T35: 10.4835 | U35: 11880 | V35: 49.7384 | W35: 13.81622222 | X35: -22.3 | Z35: 0 | AA35: 0 | AB35: 0 | AC35: 126.558375 | AD35: 100 | AE35: ОК
A36: 26 | O36: 8131 | P36: 34.0416 | Q36: 9.456 | R36: 9014 | S36: 37.7406 | T36: 10.4835 | AC36: 105.6779922 | AD36: 0
A37: 27 | O37: 8131 | P37: 34.0416 | Q37: 9.456 | R37: 9014 | S37: 37.7406 | T37: 10.4835 | AC37: 87.98960352 | AD37: 0
A38: 28 | B38: 96.6446 | C38: 1.7572 | D38: 0.531 | E38: 0.0833 | F38: 0.0843 | G38: 0.004 | H38: 0.0169 | I38: 0.0118 | J38: 0.0051 | K38: 0.0078 | L38: 0.7034 | M38: 0.1507 | N38: 0.6939 | O38: 8132 | P38: 34.0463 | Q38: 9.457305556 | R38: 9015 | S38: 37.7453 | T38: 10.48480556 | U38: 11877 | V38: 49.7284 | W38: 13.81344444 | X38: -21 | AC38: 102.620207 | AD38: 100.0001
A39: 29 | B39: 96.602 | C39: 1.7722 | D39: 0.5521 | E39: 0.0838 | F39: 0.0868 | G39: 0.0019 | H39: 0.0172 | I39: 0.0123 | J39: 0.0039 | K39: 0.0077 | L39: 0.7068 | M39: 0.1534 | N39: 0.6943 | O39: 8135 | P39: 34.0586 | Q39: 9.460722222 | R39: 9018 | S39: 37.7585 | T39: 10.48847222 | U39: 11878 | V39: 49.7325 | W39: 13.81458333 | X39: -22.2 | AC39: 113.071625 | AD39: 100.0001
A40: 30 | B40: 96.6298 | C40: 1.7455 | D40: 0.5478 | E40: 0.0841 | F40: 0.0874 | G40: 0.0025 | H40: 0.0176 | I40: 0.0128 | J40: 0.0037 | K40: 0.0077 | L40: 0.7118 | M40: 0.1494 | N40: 0.6941 | O40: 8133 | P40: 34.05 | Q40: 9.458333333 | R40: 9017 | S40: 37.75 | T40: 10.48611111 | U40: 11877 | V40: 49.7284 | W40: 13.81344444 | X40: -22.9 | AC40: 112.0516172 | AD40: 100.0001
A41: Умовно постійні компоненти, мол. % від 01.01.2016 р. | I41: Гелій | K41: 0 | L41: Водень | N41: 0 | O41: =SUMPRODUCT(O11:O40,AC11:AC40)/SUM(AC11:AC40) -> 8132.476613 | P41: =SUMPRODUCT(P11:P40,AC11:AC40)/SUM(AC11:AC40) -> 34.04861008 | Q41: =SUMPRODUCT(Q11:Q40,AC11:AC40)/SUM(AC11:AC40) -> 9.457947244 | R41: =SUMPRODUCT(R11:R40,AC11:AC40)/SUM(AC11:AC40) -> 9015.857929 | S41: =SUMPRODUCT(S11:S40,AC11:AC40)/SUM(AC11:AC40) -> 37.74745533 | T41: =SUMPRODUCT(T11:T40,AC11:AC40)/SUM(AC11:AC40) -> 10.48540426
H42: Середньозважене значення теплоти згоряння: | V42: Всього - обсяг природного газу за місяць з урахуванням ВТВ: | AC42: 3258.043
B44: Начальник управління Гайсинського ЛВУМГ Омельченко Ю.В. 07.12.2016
C45: Підрозділу підприємства, якому підпорядкована лабораторія | O45: прізвище | R45: підпис | V45: дата
B46: Начальник лабораторії Стук О.В. 07.12.2016
C47: Лабораторія, де здійснювалось вимірювання газу | O47: прізвище | R47: підпис | V47: дата
B48: Провідний економіст із збуту Гайсинського ЛВУМГ Гнатишин І.В. 07.12.2016
C49: Служба ОНПТГ | O49: прізвище | R49: підпис | V49: дата

Sheet variablesList (hidden)
A1: 3 | B1: x:\gaysin | C1: 10, 11, 24, 25, 127, 128, 132, 180, 207, 215 | D1: x:\
B2: x:\Illinci
B3: x:\Talne
